bitfinex-derivatives/quotes_ETHF0:USTF0_20251013
["timestamp","ask_amount","ask_price","bid_price","bid_amount"]
[1760370363766,0.74485,4129.0,4128.8,3.2078]
[1760370363962,0.74485,4129.0,4128.1,3.2078]
[1760370363963,0.3093,4129.0,4128.1,3.2078]
[1760370364260,3.14259125,4128.9,4128.2,0.5488]
[1760370364459,0.8005,4128.9,4128.7,0.43557]
[1760370364656,0.8005,4129.4,4128.8,3.2078]
[1760370364858,0.00198899,4128.9,4128.8,4.19216]
[1760370365158,0.00198899,4128.9,4128.8,3.2078]
[1760370365755,0.00198899,4128.9,4128.8,3.7566]
[1760370367158,0.00198899,4128.9,4128.8,4.0036]
[1760370368463,0.80248899,4128.9,4128.8,3.2078]
[1760370368964,1.23611,4128.4,4128.3,3.2078]
[1760370369160,1.23611,4128.4,4128.3,3.4548]
[1760370369566,0.00198899,4128.9,4128.8,0.5488]
[1760370369868,0.00198899,4128.9,4128.8,4.0036]
[1760370370167,0.00198899,4128.9,4128.8,3.4548]
[1760370371466,0.80248899,4128.9,4128.8,3.4548]
[1760370371766,0.80248899,4128.9,4128.8,3.2078]
[1760370372558,0.43559,4128.6,4128.5,0.247]
[1760370372764,1.23609,4128.6,4128.5,0.247]
[1760370372964,0.8005,4127.9,4127.3,3.2078]
[1760370373259,0.8005,4128.0,4127.8,3.2078]
[1760370373456,0.43754899,4128.9,4128.6,0.43558]
[1760370373664,0.00198899,4128.9,4128.7,1.23137]
[1760370373859,0.00198899,4128.9,4128.8,0.5488]
[1760370374468,0.00198899,4128.9,4128.7,0.68257]
[1760370374962,0.43558,4128.7,4128.6,3.2078]
[1760370375160,0.43557,4128.8,4128.6,3.64338]
[1760370375361,0.43754899,4128.9,4128.7,0.247]
[1760370375861,1.23934899,4128.9,4128.7,0.247]
[1760370376063,0.8018,4128.8,4128.7,0.247]
[1760370376659,0.8018,4128.8,4128.7,0.68257]
[1760370376860,0.8018,4128.8,4128.7,0.247]
[1760370377164,1.23738,4128.7,4128.6,3.2078]
[1760370378267,1.23738,4128.7,4128.4,0.247]
[1760370378268,1.5594,4128.5,4128.4,0.247]
[1760370378862,0.7576,4128.5,4128.1,3.2078]
[1760370379169,0.8018,4127.7,4127.6,3.2078]
[1760370380971,0.8018,4127.2,4127.1,3.89228356]
[1760370381670,0.322,4127.5,4127.4,0.43571]
[1760370381864,1.1238,4127.5,4127.4,0.43571]
[1760370382573,1.23747,4127.8,4127.3,0.7698]
[1760370382764,0.8018,4127.7,4127.6,3.64349]
[1760370384765,0.43561,4128.4,4128.2,0.43562]
[1760370384961,0.8018,4128.3,4128.2,0.43562]
[1760370385370,0.00198899,4128.9,4128.1,3.9776]
[1760370385574,0.00198899,4128.9,4128.8,0.95837]
[1760370385775,0.00198899,4128.9,4128.8,1.20537]
[1760370387071,0.8018,4130.4,4129.5,0.5208]
[1760370387271,0.8018,4130.4,4130.2,3.64322]
[1760370387467,1.41036,4131.0,4130.3,0.68241]
[1760370387468,1.1238,4130.5,4130.3,0.68241]
[1760370387670,0.8018,4130.9,4130.8,0.43535]
[1760370387966,0.56436802,4130.9,4130.8,4.4131779]
[1760370388274,0.00281158,4130.9,4130.8,4.4131779]
[1760370388571,0.80461158,4130.9,4130.8,3.8923779]
[1760370389768,0.00281158,4130.9,4130.8,4.4131779]
[1760370391770,0.8018,4132.0,4131.8,0.43524]
[1760370391969,0.8018,4132.0,4131.9,3.4548]
[1760370392771,0.80396103,4132.0,4131.9,3.4548]
[1760370393269,0.00216103,4132.0,4131.9,3.4548]
[1760370393471,0.00216103,4132.0,4131.9,3.9756]
[1760370394180,3.2078,4133.2,4133.0,0.43512]
[1760370394378,0.43506,4133.7,4132.6,1.08792]
[1760370394379,3.2078,4133.7,4133.2,0.5186]
[1760370394876,1.1238,4134.5,4133.2,0.5186]
[1760370395079,0.43495,4134.7,4134.1,0.435]
[1760370395268,0.75697,4134.5,4134.3,3.2078]
[1760370395575,0.8018,4134.4,4134.3,3.4548]
[1760370395879,0.80443342,4134.4,4134.3,3.45671593]
[1760370396278,0.00263342,4134.4,4134.3,3.75531593]
[1760370400986,0.80443342,4134.4,4134.3,3.20971593]
[1760370401180,0.80443342,4134.4,4134.3,0.24891593]
[1760370402578,0.80443342,4134.4,4134.3,0.07046146]
[1760370402773,0.80443342,4134.4,4133.3,3.2078]
[1760370402774,0.322,4134.0,4133.3,3.2078]
[1760370402978,0.322,4134.0,4133.4,0.247]
[1760370402979,0.8018,4133.5,4133.4,0.247]
[1760370403175,1.23688,4133.4,4133.3,3.2078]
[1760370403381,1.23688,4133.4,4133.3,3.4548]
[1760370403580,1.23688,4133.4,4133.3,3.4578972]
[1760370403775,1.23688,4133.4,4132.8,0.2986]
[1760370403776,0.43513,4132.9,4132.8,3.2078]
[1760370403976,0.43513,4132.9,4132.1,3.2078]
[1760370403977,0.8018,4132.2,4132.1,3.2078]
[1760370404186,0.43518,4132.5,4132.2,0.43521]
[1760370404381,0.75702,4134.0,4133.5,0.43507]
[1760370404683,0.75702,4134.0,4132.5,0.2024]
[1760370404684,0.8018,4133.7,4133.6,0.247]
[1760370404983,0.00263342,4134.4,4133.7,0.2986]
[1760370405388,0.7613,4134.3,4134.1,3.2078]
[1760370405593,0.00263342,4134.4,4134.0,0.248]
[1760370405786,0.7613,4134.1,4134.0,0.248]
[1760370406284,0.3252,4134.0,4133.6,3.21055871]
[1760370406488,1.19635,4133.7,4133.6,0.00275871]
[1760370409486,0.4351,4133.2,4133.1,3.2078]
[1760370409694,1.2044,4133.2,4133.1,3.2078]
[1760370409889,1.20446,4132.6,4132.5,3.2078]
[1760370410692,1.20446,4132.6,4132.5,3.21077365]
[1760370410992,0.7693,4132.6,4132.5,3.21077365]
[1760370412893,3.88018368,4132.6,4132.5,0.00297365]
[1760370413192,0.7693,4131.9,4131.5,3.4548]
[1760370413394,0.3248,4132.0,4131.5,3.4548]
[1760370413587,0.7693,4131.9,4131.5,3.2078]
[1760370414094,0.3248,4132.0,4131.5,3.21015634]
[1760370414095,1.20457,4131.6,4131.5,3.21015634]
[1760370415394,0.7693,4131.6,4131.5,3.21015634]
[1760370415588,1.20454,4131.9,4131.5,3.91812634]
[1760370415786,1.20454,4131.9,4131.6,0.43527]
[1760370415987,3.2078,4133.7,4131.8,0.2727]
[1760370416187,0.7693,4133.4,4132.8,0.43514]
[1760370416394,3.2078,4133.7,4132.9,0.248]
[1760370416591,3.9771,4133.7,4133.5,0.43506]
[1760370416793,0.00263342,4134.4,4133.8,0.2727]
[1760370417092,0.7693,4134.3,4134.1,3.2078]
[1760370417588,0.3248,4134.0,4133.8,0.248]
[1760370417789,0.3248,4134.0,4133.5,3.2078]
[1760370417997,0.7693,4133.7,4133.6,0.248]
[1760370418391,0.4351,4133.3,4133.2,0.248]
[1760370418694,1.2044,4133.3,4133.2,0.248]
[1760370420094,0.3248,4133.5,4132.7,0.68215]
[1760370420095,0.7693,4133.0,4132.7,0.68215]
[1760370420292,0.43512,4133.1,4132.7,0.68215]
[1760370420594,0.43513,4133.0,4132.7,0.247]
[1760370420798,0.7693,4132.8,4132.7,0.247]
[1760370421096,0.3248,4133.0,4132.8,0.43514]
[1760370421292,0.7693,4133.4,4132.8,0.43514]
[1760370421593,0.7693,4133.4,4132.7,0.247]
[1760370421594,0.3248,4133.0,4132.7,0.247]
[1760370421793,0.43515,4132.7,4132.5,3.2078]
[1760370422093,0.43522,4132.2,4132.1,0.247]
[1760370422400,1.20452,4132.2,4132.1,0.247]
[1760370422893,0.7693,4132.1,4132.0,3.2078]
[1760370423792,0.7693,4131.8,4131.7,0.247]
[1760370424590,0.7693,4131.6,4131.5,3.21015634]
[1760370424896,0.7693,4130.6,4130.5,3.4548]
[1760370425199,0.7693,4130.6,4130.5,3.2078]
[1760370425592,0.3248,4131.0,4130.5,3.2078]
[1760370425808,0.00246734,4131.0,4130.9,0.70804]
[1760370425994,0.00246734,4131.0,4130.9,0.2727]
[1760370426194,0.00246734,4131.0,4130.8,0.68235]
[1760370426395,0.77176734,4131.0,4130.8,0.68235]
[1760370426996,0.00246734,4131.0,4130.8,0.68235]
[1760370427299,0.00246734,4131.0,4130.8,0.95505]
[1760370427896,0.00246734,4131.0,4130.8,0.68235]
[1760370427897,0.7693,4130.9,4130.8,0.68235]
[1760370428193,0.00246734,4131.0,4130.8,0.95505]
[1760370428395,0.00246734,4131.0,4130.9,0.2727]
[1760370428993,1.0941,4132.5,4131.0,1.18203]
[1760370429196,0.3248,4133.5,4132.7,0.43515]
[1760370429494,0.43514,4132.9,4132.6,0.43516]
[1760370429696,1.0941,4133.0,4132.5,0.2702]
[1760370429999,0.7693,4132.8,4132.7,0.43515]
[1760370430206,0.00199759,4133.0,4132.9,0.70533]
[1760370430503,0.00199759,4133.0,4132.9,4.16013]
[1760370430801,0.00199759,4133.0,4132.9,3.88993]
[1760370431207,0.00199759,4133.0,4132.9,4.16013]
[1760370431596,0.00199759,4133.0,4132.9,3.4548]
[1760370431797,0.32679759,4133.0,4131.9,0.2702]
[1760370431994,0.7693,4132.0,4131.9,3.2078]
[1760370432197,0.7693,4132.0,4131.9,3.4548]
[1760370432397,0.3248,4132.0,4131.3,3.2078]
[1760370432602,0.43527,4131.6,4131.4,0.68229]
[1760370432802,0.43527,4131.6,4131.5,0.43528]
[1760370432803,0.7693,4131.6,4131.5,0.43528]
[1760370433208,0.7693,4131.5,4131.4,0.247]
[1760370434207,0.7693,4132.3,4131.5,1.08821]
[1760370434508,0.7693,4132.4,4131.8,0.43524]
[1760370434706,0.43523,4132.1,4131.9,0.43524]
[1760370434907,0.43523,4132.0,4131.8,0.247]
[1760370435110,0.7693,4131.9,4131.8,0.247]
[1760370436411,1.17129,4131.4,4131.3,3.2078]
[1760370437404,1.17135,4130.8,4130.7,3.2078]
[1760370438006,0.736,4131.4,4130.7,3.2078]
[1760370438311,0.2953,4132.0,4131.3,3.2078]
[1760370438609,3.2078,4132.6,4132.4,0.43519]
[1760370438816,0.8682698,4132.9,4132.4,0.43519]
[1760370438817,0.736,4132.9,4132.7,0.43515]
[1760370439021,0.00199759,4133.0,4132.9,0.43513]
[1760370439215,0.00199759,4133.0,4132.9,4.14163]
[1760370439517,0.73799759,4133.0,4132.9,3.4548]
[1760370439917,0.00199759,4133.0,4132.9,3.4548]
[1760370440113,0.00199759,4133.0,4132.9,3.7065]
[1760370440412,1.5521,4134.0,4133.8,0.43503]
[1760370440608,2.2881,4134.0,4133.7,0.247]
[1760370440813,0.43508,4133.4,4133.2,3.2078]
[1760370441020,0.736,4133.3,4133.2,3.2078]
[1760370441220,0.736,4133.3,4133.2,3.4548]
[1760370441421,0.73784344,4133.3,4133.2,3.45656106]
[1760370441622,0.00184344,4133.3,4133.2,3.45656106]
[1760370442317,0.43516,4132.6,4132.5,3.2078]
[1760370442517,1.17116,4132.6,4132.5,3.2078]
[1760370443122,0.736,4132.6,4132.5,3.2078]
[1760370443421,0.736,4132.6,4132.5,3.21093678]
[1760370444715,0.736,4132.6,4132.5,3.45793678]
[1760370445516,0.73784344,4133.3,4132.5,3.71133678]
[1760370445822,0.43512,4133.0,4132.7,0.43515]
[1760370446118,0.43511,4133.2,4133.0,0.43512]
[1760370446314,0.736,4133.2,4133.1,0.68211]
[1760370446723,0.00184344,4133.3,4133.1,3.88991]
[1760370446922,0.00184344,4133.3,4133.1,4.14331]
[1760370447513,0.00184344,4133.3,4133.2,0.2534]
[1760370447820,0.736,4133.2,4133.1,3.2078]
[1760370448120,1.17116,4132.6,4132.5,3.45893678]
[1760370448315,0.43515,4132.8,4132.6,0.43516]
[1760370448515,0.43516,4132.7,4132.5,3.45893678]
[1760370448719,0.736,4132.6,4132.5,3.45893678]
[1760370449518,0.73043,4133.0,4132.8,0.43514]
[1760370449723,1.17116,4132.6,4132.5,3.45893678]
[1760370450425,0.43516,4132.7,4132.5,3.89410678]
[1760370450722,1.17116,4132.7,4132.5,3.89410678]
[1760370451119,0.736,4132.6,4132.5,3.45893678]
[1760370451418,0.43514,4132.9,4132.5,0.50453678]
[1760370451619,0.43512,4133.0,4132.8,0.43514]
[1760370451817,0.736,4132.8,4132.7,0.247]
[1760370452618,4.37892,4133.1,4132.7,0.247]
[1760370452821,1.17113,4133.0,4132.9,0.43513]
[1760370453222,0.736,4133.0,4132.8,0.43514]
[1760370453423,0.00184344,4133.3,4133.2,0.6885]
[1760370453623,0.736,4134.4,4133.5,1.33928]
[1760370453920,0.736,4134.4,4132.8,2.17573]
[1760370453921,0.736,4134.4,4134.2,0.43499]
[1760370454122,0.2953,4134.5,4134.4,0.43497]
[1760370454523,0.736,4134.3,4134.2,0.43499]
[1760370454726,0.0024873,4134.5,4134.4,0.43497]
[1760370454928,0.0024873,4134.5,4134.4,3.64277]
[1760370455127,0.0024873,4134.5,4134.4,4.14137]
[1760370459727,1.0337873,4134.5,4134.4,3.2078]
[1760370460931,0.43504,4133.8,4133.7,3.2078]
[1760370461236,1.17104,4133.8,4133.7,3.4548]
[1760370462831,1.17109,4133.3,4133.2,3.2078]
[1760370463029,1.17109,4133.3,4133.2,3.4548]
[1760370463733,0.736,4133.3,4133.2,3.4548]
[1760370463929,1.46637,4133.5,4133.3,0.43509]
[1760370464131,0.43509,4133.3,4133.2,3.4548]
[1760370464327,1.17109,4133.3,4133.2,3.4548]
[1760370464524,3.9438,4133.9,4133.2,3.4548]
[1760370464831,0.736,4134.4,4133.6,0.43505]
[1760370465036,0.736,4134.4,4133.7,0.68205]
[1760370465037,0.43503,4133.9,4133.7,0.68205]
[1760370465428,0.7941,4133.3,4133.2,3.6429]
[1760370465627,0.7941,4133.3,4133.2,3.8899]
[1760370466138,0.7941,4133.7,4133.6,0.43506]
[1760370466338,0.314,4134.0,4133.5,0.247]
[1760370466731,1.22916,4133.6,4133.5,0.247]
[1760370472837,0.7653,4132.8,4132.5,0.00313678]
[1760370473038,1.20046,4132.6,4132.5,0.00313678]
[1760370477536,4.60763612,4132.6,4132.5,0.00313678]
[1760370477737,5.17208009,4132.6,4132.5,0.00313678]
[1760370479037,5.17208009,4132.6,4132.5,3.678e-05]
[1760370479245,5.17208009,4132.6,4131.2,3.2078]
[1760370479246,0.7653,4131.3,4131.2,3.4548]
[1760370479540,0.7653,4131.3,4131.2,0.247]
[1760370480131,0.76776103,4131.3,4131.2,0.00225653]
[1760370480334,3.85532172,4131.3,4131.2,0.00225653]
[1760370480536,3.85532172,4131.3,4130.2,3.2078]
[1760370480537,0.7653,4130.3,4130.2,3.2078]
[1760370480935,0.7653,4130.8,4130.5,0.2262]
[1760370481129,0.43532,4131.2,4130.7,3.2078]
[1760370481333,0.43532,4131.2,4130.7,3.86936]
[1760370481334,0.7653,4131.1,4130.7,3.86936]
[1760370481534,0.76776103,4131.3,4131.0,0.66152]
[1760370482043,1.20065,4130.8,4130.7,0.00262392]
[1760370483038,0.7653,4130.8,4130.7,3.21042392]
[1760370483644,0.7653,4130.8,4130.7,0.00262392]
[1760370485143,4.17929612,4130.8,4130.7,0.00262392]
[1760370485340,4.17929612,4130.8,4129.7,3.2078]
[1760370485341,0.43546,4129.8,4129.7,3.2078]
[1760370485545,1.20076,4129.8,4129.7,3.2078]
[1760370486039,0.7653,4129.8,4129.7,3.2078]
[1760370486441,0.7653,4129.8,4129.7,3.2099701]
[1760370486641,0.7653,4130.3,4129.7,3.2099701]
[1760370486840,1.0545,4130.5,4130.3,0.43541]
[1760370487037,0.7653,4130.9,4130.6,0.43537]
[1760370487237,0.7653,4130.9,4130.2,3.6837]
[1760370487238,0.7653,4130.6,4130.4,0.43539]
[1760370487434,1.20068,4130.6,4130.2,3.2078]
[1760370487637,0.7653,4130.1,4130.0,0.43543]
[1760370488153,0.2892,4130.0,4129.8,0.68245]
[1760370488442,1.20076,4129.8,4129.7,0.0021701]
[1760370488644,0.7653,4129.8,4129.7,0.0021701]
[1760370488846,3.497,4130.5,4129.8,0.43546]
[1760370488847,0.43542,4130.2,4129.8,0.43546]
[1760370489048,0.43542,4130.2,4130.1,3.2078]
[1760370489049,1.20072,4130.2,4130.1,3.2078]
[1760370489558,1.20072,4130.2,4130.1,3.64323]
[1760370490743,1.20072,4130.2,4130.1,3.2078]
[1760370490946,1.20076,4129.8,4129.7,0.4376401]
[1760370491347,0.7653,4129.8,4129.7,0.4376401]
[1760370492946,0.7653,4129.8,4129.7,0.0021701]
[1760370493249,1.20076,4129.8,4129.7,0.0021701]
[1760370493452,4.4195855,4129.8,4129.7,0.0021701]
[1760370493747,7.6273855,4129.8,4129.7,0.0021701]
[1760370494456,0.43563,4128.2,4128.0,3.2078]
[1760370494751,0.43567,4127.8,4127.5,3.2078]
[1760370494952,0.2892,4128.0,4127.6,0.43569]
[1760370494953,0.7653,4127.9,4127.6,0.43569]
[1760370495147,0.72485,4128.0,4127.7,0.43568]
[1760370495447,1.20096,4127.9,4127.7,0.00241383]
[1760370495650,1.20096,4127.9,4127.7,0.43809383]
[1760370495651,0.7099,4127.9,4127.7,0.43809383]
[1760370495948,0.7099,4127.9,4127.8,0.43567]
[1760370496149,0.00194582,4128.0,4127.9,0.2065]
[1760370496554,0.00194582,4128.0,4127.9,0.4535]
[1760370497060,0.00194582,4128.0,4127.9,0.247]
[1760370497547,0.71184582,4128.0,4127.9,0.247]
[1760370497754,0.00194582,4128.0,4127.9,0.4535]
[1760370498047,0.00194582,4128.0,4127.9,0.247]
[1760370498255,0.99664582,4128.0,4127.9,0.247]
[1760370499449,0.7099,4127.8,4127.7,0.00241383]
[1760370499644,0.7099,4127.6,4127.5,3.2078]
[1760370499845,0.7099,4127.6,4127.2,0.43573]
[1760370499846,0.7099,4127.4,4127.2,0.43573]
[1760370500051,0.7099,4127.4,4127.0,3.2078]
[1760370500249,0.7099,4127.4,4127.1,0.43574]
[1760370500445,0.7099,4127.4,4127.1,1.33637]
[1760370500748,0.7099,4127.8,4127.7,0.43568]
[1760370500955,0.43567,4127.9,4127.7,0.43568]
[1760370501159,0.7099,4127.8,4127.7,0.43568]
[1760370501350,0.7099,4127.6,4127.5,0.4357]
[1760370501551,0.2848,4127.5,4127.4,0.68271]
[1760370501747,0.9947,4127.5,4127.4,0.43571]
[1760370504551,0.9947,4127.5,4127.1,0.00223443]
[1760370504756,0.7099,4127.2,4127.1,0.00223443]
[1760370505059,3.93039605,4127.2,4127.1,0.00223443]
[1760370505555,0.7099,4127.2,4127.1,0.00223443]
[1760370505746,0.9947,4127.5,4127.4,0.43571]
[1760370506151,0.99664582,4128.0,4127.9,0.43566]
[1760370506349,0.99664582,4128.0,4127.7,0.43567]
[1760370506555,0.99664582,4128.0,4127.2,0.247]
[1760370506556,0.99664582,4128.0,4127.8,0.43567]
[1760370507157,1.43229582,4128.0,4127.8,0.43567]
[1760370507559,0.2848,4127.5,4127.4,0.43571]
[1760370507759,0.9947,4127.5,4127.4,0.68271]
[1760370508355,0.28674582,4128.0,4127.9,0.43566]
[1760370508553,0.99664582,4128.0,4127.9,0.43566]
[1760370508955,0.00194582,4128.0,4127.9,0.43566]
[1760370509251,0.71184582,4128.0,4127.9,0.43566]
[1760370509553,4.64704986,4128.0,4127.8,0.247]
[1760370509747,4.64704986,4128.0,4127.6,0.43569]
[1760370509748,0.2848,4127.5,4127.3,0.247]
[1760370509952,0.9947,4127.5,4127.4,0.43571]
[1760370510352,0.7099,4127.4,4127.3,0.43572]
[1760370510757,0.00194582,4128.0,4127.9,0.64456]
[1760370510958,0.71184582,4128.0,4127.9,3.64346]
[1760370511159,0.99664582,4128.0,4127.9,3.64346]
[1760370512069,0.71184582,4128.0,4127.9,3.64346]
[1760370512461,0.99664582,4128.0,4127.9,3.64346]
[1760370513464,0.99664582,4128.0,4127.9,3.89046]
[1760370513861,0.99664582,4128.0,4127.9,3.4548]
[1760370514259,0.71184582,4128.0,4127.9,3.89046]
[1760370515160,0.99664582,4128.0,4127.9,3.64346]
[1760370515457,0.00194582,4128.0,4127.9,3.64346]
[1760370515657,0.9991,4129.0,4128.9,0.43555]
[1760370515859,0.7099,4129.0,4128.9,0.43555]
[1760370516560,0.9947,4129.0,4128.9,0.43555]
[1760370516764,0.99724408,4129.0,4128.9,0.43555]
[1760370517369,0.00254408,4129.0,4128.9,0.64445]
[1760370517666,0.71244408,4129.0,4128.9,0.43555]
[1760370518155,0.99724408,4129.0,4128.9,0.43555]
[1760370519163,0.99724408,4129.0,4128.9,0.68255]
[1760370519762,0.99724408,4129.0,4128.9,0.43555]
[1760370520069,0.99724408,4129.0,4127.8,2.38723]
[1760370520070,1.14552,4128.4,4128.3,0.43561]
[1760370520262,0.7099,4128.4,4128.3,0.43561]
[1760370520463,1.14551,4128.4,4128.3,0.43561]
[1760370520965,1.14551,4128.4,4128.0,0.247]
[1760370520966,0.9947,4128.0,4127.9,0.43566]
[1760370521163,0.7099,4128.0,4127.9,0.43566]
[1760370521363,0.9947,4128.0,4127.9,0.43566]
[1760370522069,1.14557,4127.8,4127.7,3.2078]
[1760370522266,0.2848,4127.5,4127.2,3.4548]
[1760370522466,0.7099,4127.4,4127.3,0.247]
[1760370522669,0.2848,4128.0,4127.9,0.43566]
[1760370522974,0.2848,4128.5,4128.4,0.43561]
[1760370523268,1.56296785,4128.5,4128.4,3.89041]
[1760370523766,1.56296785,4128.5,4128.4,0.43561]
[1760370524272,0.2848,4128.0,4127.9,3.2078]
[1760370524473,0.7099,4127.9,4127.8,0.43567]
[1760370524675,1.27882257,4127.9,4127.8,0.43567]
[1760370526273,1.19597,4127.8,4127.3,3.2078]
[1760370526573,1.0498,4127.5,4127.4,0.68271]
[1760370528176,1.46525,4128.0,4127.9,0.43566]
[1760370528475,1.59862959,4128.0,4127.9,0.43566]
[1760370528676,3.2078,4128.4,4128.3,0.43562]
[1760370528677,0.7448,4128.4,4128.3,0.43562]
[1760370528976,1.3137709,4128.4,4128.3,0.68262]
[1760370529173,0.7448,4128.4,4128.3,0.68262]
[1760370530171,0.7448,4128.4,4128.3,0.43562]
[1760370530378,0.7448,4128.4,4127.9,3.2078]
[1760370530379,1.45905,4128.0,4127.9,3.2078]
[1760370530679,1.59230509,4128.0,4127.9,3.2078]
[1760370530975,1.59230509,4128.0,4127.9,3.64346]
[1760370531169,1.0234,4128.0,4127.9,3.64346]
[1760370532876,0.2848,4128.5,4128.4,0.43561]
[1760370533176,0.2848,4128.5,4128.4,3.64341]
[1760370533376,1.0296,4128.5,4128.4,3.64341]
[1760370533875,3.2078,4128.9,4128.8,0.43556]
[1760370534079,3.77674392,4128.9,4128.8,0.43556]
[1760370534381,1.31374392,4128.9,4128.8,0.43556]
[1760370535478,0.7448,4128.9,4128.8,0.43556]
[1760370535775,0.28734408,4129.0,4128.6,0.247]
[1760370535776,1.03214408,4129.0,4128.9,0.43555]
[1760370535982,1.03214408,4129.0,4128.9,3.89035]
[1760370537078,0.00254408,4129.0,4128.9,4.07085]
[1760370537580,1.02594408,4129.0,4128.9,3.89035]
[1760370538177,1.02594408,4129.0,4128.9,3.2078]
[1760370539479,0.74734408,4129.0,4128.9,3.4548]
[1760370539677,1.02594408,4129.0,4128.9,3.4548]
[1760370540380,0.74734408,4129.0,4128.9,3.4548]
[1760370540581,0.00254408,4129.0,4128.9,3.6353]
[1760370540781,0.00254408,4129.0,4128.9,3.4548]
[1760370540980,0.74734408,4129.0,4128.9,3.4548]
[1760370541382,3.685,4130.0,4129.9,0.43545]
[1760370541578,4.25272775,4130.0,4129.9,0.43545]
[1760370541776,3.685,4130.0,4129.9,0.68245]
[1760370541981,3.4064,4130.0,4129.9,0.68245]
[1760370542277,3.40954274,4130.0,4129.9,0.68245]
[1760370542477,3.68814274,4130.0,4129.9,0.68245]
[1760370542877,0.2786,4129.5,4129.4,0.4355]
[1760370543078,0.2786,4129.0,4128.8,0.43556]
[1760370543278,0.2786,4129.0,4128.7,0.247]
[1760370543481,6.60896261,4129.5,4129.4,0.4355]
[1760370543482,4.2312,4129.5,4129.4,0.4355]
[1760370543689,1.0234,4129.5,4129.4,0.4355]
[1760370545483,0.7448,4129.5,4129.4,0.4355]
[1760370546081,3.68814274,4130.0,4129.9,0.43545]
[1760370546280,2.66474274,4130.0,4129.9,3.64325]
[1760370546479,3.68814274,4130.0,4129.9,3.2078]
[1760370546885,1.02654274,4130.0,4129.9,3.2078]
[1760370547189,1.02654274,4130.0,4129.9,3.3883]
[1760370547190,0.00314274,4130.0,4129.9,3.3883]
[1760370547583,1.02654274,4130.0,4129.9,3.2078]
[1760370547886,1.02654274,4130.0,4129.9,3.4548]
[1760370548286,1.02654274,4130.0,4129.9,3.2078]
[1760370549282,0.00314274,4130.0,4129.9,3.2078]
[1760370549484,0.00314274,4130.0,4129.9,3.3883]
[1760370550593,0.7448,4130.5,4130.4,0.4354]
[1760370550790,0.7448,4130.5,4130.4,3.8902]
[1760370550989,0.71389,4131.5,4131.4,0.43529]
[1760370551286,0.2786,4132.0,4131.9,0.43524]
[1760370551589,0.2786,4132.0,4131.9,0.437954]
[1760370551590,1.02608989,4132.0,4131.9,0.437954]
[1760370551986,0.00268989,4132.0,4131.9,0.437954]
[1760370552187,0.00268989,4132.0,4131.9,3.645754]
[1760370552385,0.00268989,4132.0,4131.9,3.826254]
[1760370552788,1.6936,4132.4,4132.3,0.6157]
[1760370553086,0.7448,4133.4,4133.3,0.43509]
[1760370553287,0.7448,4133.4,4133.3,0.247]
[1760370553894,0.74697748,4133.4,4133.3,0.247]
[1760370555890,0.00217748,4133.4,4133.3,0.247]
[1760370556396,0.76227748,4133.4,4133.3,0.247]
[1760370557102,0.7601,4133.3,4132.7,3.2078]
[1760370557292,0.7601,4133.3,4133.1,0.43511]
[1760370557491,0.7601,4133.3,4133.2,0.247]
[1760370557896,0.00217748,4133.4,4133.2,0.6821]
[1760370558103,0.00217748,4133.4,4133.3,0.1718]
[1760370558494,0.00217748,4133.4,4133.2,3.8899]
[1760370558793,0.76227748,4133.4,4133.2,3.8899]
[1760370558992,0.00217748,4133.4,4133.3,0.1718]
[1760370559693,0.00217748,4133.4,4133.3,0.4188]
[1760370560197,0.76227748,4133.4,4133.3,0.247]
[1760370560990,0.00217748,4133.4,4133.3,0.4188]
[1760370561799,2.237,4134.5,4134.3,0.60678]
[1760370562097,3.43206,4134.5,4134.4,3.4548]
[1760370562994,3.4340407,4134.5,4134.4,3.4548]
[1760370563700,0.7601,4133.9,4133.8,3.2078]
[1760370563898,0.7601,4133.9,4133.8,3.4548]
[1760370566494,0.71457,4133.5,4133.2,3.2078]
[1760370566692,0.43506,4133.7,4133.3,0.4188]
[1760370566892,1.19516,4133.6,4133.3,0.4188]
[1760370567291,0.43506,4133.6,4133.3,0.4188]
[1760370567493,0.7601,4133.5,4133.3,0.4188]
[1760370567693,0.7601,4133.4,4133.3,0.247]
[1760370569096,0.43503,4133.9,4133.4,0.43508]
[1760370569396,0.7601,4133.8,4133.7,3.2078]
[1760370569698,0.7601,4134.3,4133.7,3.4548]
[1760370569890,0.7601,4134.3,4133.8,0.43503]
[1760370570095,0.7601,4134.3,4133.9,0.4188]
[1760370570296,3.64278,4134.4,4133.9,0.4188]
[1760370570497,0.7601,4134.2,4133.9,0.4188]
[1760370570795,1.9603807,4134.5,4134.4,0.43497]
[1760370570997,1.9603807,4134.5,4134.4,4.06157]
[1760370572305,1.9603807,4134.5,4134.4,3.4548]
[1760370572605,2.9999807,4134.5,4134.4,3.4548]
[1760370574007,1.4765407,4134.5,4134.4,3.4548]
[1760370574309,1.0415807,4134.5,4134.4,3.4548]
[1760370575604,0.2795,4134.0,4133.9,3.2078]
[1760370575907,0.2795,4134.0,4131.2,2.17657]
[1760370575908,0.71463,4133.0,4132.3,3.88999]
[1760370576206,0.71463,4133.0,4131.0,0.1718]
[1760370576207,0.7601,4132.9,4132.8,3.2078]
[1760370576399,1.0396,4133.5,4132.8,3.81474]
[1760370576599,0.7601,4133.5,4132.9,0.247]
[1760370576802,0.43509,4133.3,4132.9,0.247]
[1760370577007,0.7601,4133.2,4132.9,0.247]
[1760370577209,0.43509,4133.3,4132.9,0.247]
[1760370577608,0.7601,4133.2,4132.9,0.247]
[1760370577803,0.7601,4133.2,4132.9,0.85393]
[1760370578207,0.2795,4133.5,4132.9,0.85393]